bitfinex/quotes_SOLUSD_20250819
["timestamp","ask_amount","ask_price","bid_price","bid_amount"]
[1755574445826,172.52,181.04,181.02,0.03]
[1755574446145,173.24,181.04,181.02,0.03]
[1755574446851,0.72,181.03,181.02,0.03]
[1755574447350,172.52,181.04,181.02,0.03]
[1755574447526,173.24,181.04,181.02,0.03]
[1755574448050,39.82,181.03,181.02,0.72]
[1755574448351,172.52,181.04,181.02,5.76165693]
[1755574448548,172.52,181.04,181.02,0.03]
[1755574448853,173.22,181.04,181.02,0.03]
[1755574449327,132.7,181.03,181.02,0.03]
[1755574450028,133.4,181.03,181.02,0.03]
[1755574450828,5.74165693,181.03,181.02,0.03]
[1755574451729,50.6199205,181.03,181.02,0.03]
[1755574451927,54.65278184,181.03,181.02,0.03]
[1755574452127,28.65278184,181.03,181.02,0.03]
[1755574452543,28.65289755,181.03,181.02,0.03]
[1755574453530,28.65289755,181.03,180.98,0.03]
[1755574453531,41.10621557,181.0,180.98,0.03]
[1755574453737,67.77289755,180.99,180.98,0.03]
[1755574454031,68.47289755,180.99,180.98,0.03]
[1755574455835,53.36668198,180.99,180.98,0.03]
[1755574456458,48.32502505,180.99,180.98,0.03]
[1755574456754,53.36668198,180.99,180.98,0.03]
[1755574457852,52.66668198,180.99,180.98,0.03]
[1755574458027,44.292048,180.99,180.98,0.03]
[1755574458225,43.44988643,180.99,180.98,0.03]
[1755574458457,39.82,180.99,180.98,0.03]
[1755574459038,39.82,180.99,180.98,0.72]
[1755574459658,132.7,181.02,180.98,6.24547242]
[1755574459659,39.84,181.0,180.98,6.24547242]
[1755574459968,44.88165693,181.0,180.98,0.03]
[1755574460134,39.84,181.0,180.98,0.03]
[1755574461246,5.74165693,180.99,180.98,0.03]
[1755574461761,4.33002254,180.99,180.98,0.03]
[1755574461961,3.63002254,180.99,180.98,0.03]
[1755574462339,5.04165693,180.99,180.98,0.03]
[1755574462978,9.51332659,180.99,180.98,0.03]
[1755574463277,28.65115282,180.99,180.98,0.03]
[1755574464988,7.80328032,180.99,180.98,0.03]
[1755574465281,12.84493725,180.99,180.98,0.03]
[1755574465457,13.54493725,180.99,180.98,0.03]
[1755574465854,28.65115282,180.99,180.98,0.03]
[1755574466377,12.84493725,180.99,180.98,0.03]
[1755574466957,12.84400555,180.99,180.98,0.03]
[1755574467372,3.62950809,180.99,180.98,0.03]
[1755574467558,70.88165693,181.0,180.98,0.72]
[1755574467756,70.88165693,181.0,180.98,0.03]
[1755574468554,70.88165693,181.0,180.98,0.72]
[1755574468790,39.84,181.0,180.98,0.72]
[1755574469388,44.88165693,181.0,180.98,0.72]
[1755574469591,44.88165693,181.0,180.98,0.03]
[1755574469755,39.84,181.0,180.98,0.03]
[1755574470158,44.88165693,181.0,180.98,0.03]
[1755574470375,13.54576946,180.99,180.98,0.03]
[1755574470576,28.65198503,180.99,180.98,0.03]
[1755574471866,52.66576946,180.99,180.98,0.03]
[1755574472266,47.62411253,180.99,180.98,0.03]
[1755574472469,52.66576946,180.99,180.98,0.03]
[1755574473673,7.66195096,180.99,180.98,0.72]
[1755574473998,39.84,180.99,180.98,0.72]
[1755574475494,39.84,180.99,180.98,0.03]
[1755574475667,47.51015085,180.99,180.98,0.72]
[1755574476367,47.51015085,180.99,180.98,0.03]
[1755574476568,52.55180778,180.99,180.98,0.03]
[1755574478193,47.51015085,180.99,180.98,0.03]
[1755574478364,52.55180778,180.99,180.98,0.03]
[1755574478565,47.51015085,180.99,180.98,0.03]
[1755574478786,52.55180778,180.99,180.98,0.03]
[1755574478984,52.54760166,180.99,180.98,0.03]
[1755574479191,52.54764956,180.99,180.98,0.03]
[1755574479463,48.51297437,180.99,180.98,0.03]
[1755574479864,39.84,180.99,180.98,0.73]
[1755574480601,39.84,180.99,180.98,0.03]
[1755574480784,43.47114826,180.99,180.98,0.03]
[1755574480973,48.51280519,180.99,180.98,0.03]
[1755574481176,43.47114826,180.99,180.98,0.03]
[1755574481379,39.84,180.99,180.98,0.73]
[1755574481975,39.84,180.99,180.98,0.03]
[1755574483473,39.84,180.99,180.98,0.73]
[1755574484775,39.84,180.99,180.98,5.77165693]
[1755574484976,5.10165693,181.04,180.98,11.29712935]
[1755574485174,47.49004858,181.03,180.99,5.74165693]
[1755574485395,3.63328423,181.02,181.0,0.7]
[1755574485622,39.82,181.01,181.0,0.7]
[1755574488106,39.82,181.01,180.98,11.29703888]
[1755574488298,39.82,181.01,180.99,0.7]
[1755574490692,39.82,181.01,181.0,0.7]
[1755574490892,43.45545793,181.01,181.0,0.7]
[1755574492208,132.7,181.03,181.0,6.22471569]
[1755574492413,3.63566644,181.02,181.0,6.22471569]
[1755574492618,3.63566644,181.02,181.01,0.7]
[1755574493716,3.63457965,181.02,181.01,6.22455665]
[1755574494315,3.63457965,181.02,181.01,11.26621358]
[1755574494630,39.86,181.04,181.01,11.26621358]
[1755574494818,3.63505717,181.03,181.01,10.56621358]
[1755574494996,3.69505717,181.04,181.02,0.7]
[1755574495915,3.69505717,181.04,181.02,6.22421018]
[1755574496223,3.69505717,181.04,181.03,0.7]
[1755574496737,3.69505717,181.04,181.03,5.74165693]
[1755574497235,0.06,181.04,181.03,5.74165693]
[1755574497802,0.06,181.04,181.03,11.26560323]
[1755574498112,0.06,181.04,181.03,26.3718188]
[1755574498922,0.06,181.05,181.03,26.3718188]
[1755574499103,0.06,181.05,181.03,20.63016187]
[1755574499309,0.06,181.05,181.04,5.74165693]
[1755574499832,0.06,181.05,181.04,11.26529811]
[1755574500325,0.06,181.11,181.07,41.10621557]
[1755574500535,0.06,181.11,181.1,20.1478725]
[1755574500953,0.06,181.11,181.1,5.74165693]
[1755574501832,0.06,181.11,181.1,11.26346808]
[1755574502459,0.06,181.11,181.07,5.04165693]
[1755574502748,5.76165693,181.1,181.07,5.52267933]
[1755574502948,5.04165693,181.08,181.04,5.52357298]
[1755574503107,5.76165693,181.08,181.04,5.52357298]
[1755574503446,5.76165693,181.07,181.03,5.52389357]
[1755574503619,3.62249805,181.1,181.05,5.04165693]
[1755574503934,39.84,181.11,181.09,10.563773]
[1755574504345,39.84,181.11,181.09,5.52211607]
[1755574504508,39.84,181.11,181.09,6.22211607]
[1755574504836,5.76165693,181.1,181.04,6.22364118]
[1755574505030,0.72,181.1,181.05,5.04165693]
[1755574505236,5.76165693,181.1,181.05,5.04165693]
[1755574505442,5.04165693,181.09,181.05,0.7]
[1755574505617,5.76165693,181.09,181.05,0.7]
[1755574505810,5.04165693,181.09,181.06,5.52303103]
[1755574506505,5.76165693,181.09,181.05,5.55332266]
[1755574506708,5.04165693,181.09,181.06,0.7]
[1755574506942,44.88165693,181.11,181.07,0.7]
[1755574507134,39.84,181.11,181.08,0.7]
[1755574507323,39.84,181.11,181.08,5.74165693]
[1755574507641,40.56,181.11,181.07,5.04165693]
[1755574507836,40.56,181.11,181.09,0.03]
[1755574508011,39.84,181.11,181.09,0.03]
[1755574508721,0.06,181.11,181.09,0.03]
[1755574509618,0.06,181.11,181.1,0.68]
[1755574509810,0.06,181.11,181.1,5.72165693]
[1755574510029,0.06,181.11,181.1,11.24346808]
[1755574511340,0.06,181.11,181.1,26.34968365]
[1755574511537,0.06,181.15,181.11,15.10621557]
[1755574511756,0.06,181.15,181.14,5.04165693]
[1755574511928,0.06,181.15,181.14,10.56224873]
[1755574512835,0.06,181.15,181.12,10.56256343]
[1755574513014,0.06,181.15,181.09,5.07165693]
[1755574513015,5.71165693,181.14,181.09,5.07165693]
[1755574513528,0.67,181.13,181.1,5.52153474]
[1755574513724,0.67,181.13,181.1,10.56319167]
[1755574513936,0.06,181.15,181.11,5.72165693]
[1755574514314,0.73,181.15,181.11,5.72165693]
[1755574515050,0.73,181.15,181.12,5.52120141]
[1755574515051,0.06,181.15,181.12,5.52120141]
[1755574515567,0.06,181.15,181.09,5.75165693]
[1755574515568,5.71165693,181.14,181.09,5.75165693]
[1755574515732,5.04165693,181.13,181.09,0.03]
[1755574515934,5.04165693,181.12,181.09,0.03]
[1755574516350,5.71165693,181.13,181.09,5.55208644]
[1755574516556,5.04165693,181.14,181.1,0.68]
[1755574516862,5.04165693,181.14,181.09,5.55208644]
[1755574517023,5.71165693,181.13,181.09,5.55208644]
[1755574517225,5.04165693,181.13,181.09,5.55208644]
[1755574517455,5.71165693,181.14,181.09,10.59374337]
[1755574517758,5.71165693,181.14,181.09,11.27374337]
[1755574517937,0.06,181.15,181.11,5.04165693]
[1755574518138,5.10165693,181.15,181.1,5.72165693]
[1755574518343,5.77165693,181.15,181.1,5.72165693]
[1755574519040,5.04165693,181.14,181.1,5.52172423]
[1755574519310,0.67,181.13,181.1,5.52172423]
[1755574519555,0.67,181.13,181.09,0.03]
[1755574519556,5.04165693,181.11,181.09,0.03]
[1755574520070,0.67,181.11,181.09,0.03]
[1755574520863,5.04165693,181.12,181.09,0.03]
[1755574521164,39.76,181.13,181.09,5.75165693]
[1755574521358,39.76,181.13,181.1,5.72165693]
[1755574521530,39.76,181.13,181.11,0.68]
[1755574521855,0.06,181.15,181.09,5.07165693]
[1755574521856,5.04165693,181.14,181.09,5.07165693]
[1755574522043,0.67,181.13,181.09,5.07165693]
[1755574522464,0.67,181.13,181.09,0.03]
[1755574522640,5.04165693,181.14,181.09,0.03]
[1755574522641,40.49,181.15,181.1,0.68]
[1755574522850,132.7,181.14,181.1,5.72165693]
[1755574523057,132.7,181.14,181.13,5.04165693]
[1755574523264,132.7,181.14,181.13,5.72165693]
[1755574523571,132.7,181.14,181.11,10.56316319]
[1755574523766,132.7,181.14,181.11,11.24316319]
[1755574524175,133.37,181.14,181.1,5.52171923]
[1755574524351,5.71165693,181.13,181.09,5.55204705]
[1755574524551,132.7,181.14,181.09,5.55204705]
[1755574524552,5.71165693,181.12,181.09,5.55204705]
[1755574525087,0.67,181.11,181.09,0.03]
[1755574525382,5.04165693,181.1,181.09,0.03]
[1755574525760,5.71165693,181.1,181.09,0.03]
[1755574525957,138.41165693,181.1,181.09,0.03]
[1755574526269,146.18544825,181.1,181.09,0.03]
[1755574526789,146.18569441,181.1,181.09,0.03]
[1755574527662,141.35653576,181.1,181.09,0.03]
[1755574527868,138.41165693,181.1,181.09,0.03]
[1755574528074,146.18912287,181.1,181.09,0.03]
[1755574529170,13.48912287,181.1,181.09,0.03]
[1755574530759,12.81912287,181.1,181.09,0.03]
[1755574531359,13.48912287,181.1,181.09,0.03]
[1755574531771,13.3469613,181.1,181.09,0.03]
[1755574532158,12.6769613,181.1,181.09,0.03]
[1755574532362,13.3469613,181.1,181.09,0.03]
[1755574532677,9.32858298,181.1,181.09,0.03]
[1755574532857,13.35373071,181.1,181.09,0.03]
[1755574533058,12.68373071,181.1,181.09,0.03]
[1755574533490,12.68499736,181.1,181.09,0.03]
[1755574534565,7.64334043,181.1,181.09,0.03]
[1755574534775,12.68499736,181.1,181.09,0.03]
[1755574535783,12.6872953,181.1,181.09,0.03]
[1755574536364,7.64563837,181.1,181.09,0.03]
[1755574536681,3.61692605,181.1,181.09,0.71]
[1755574537701,44.80165693,181.11,181.09,0.03]
[1755574538184,5.04165693,181.1,181.09,0.03]
[1755574538391,44.80165693,181.11,181.09,0.03]
[1755574538589,44.80165693,181.11,181.09,0.69]
[1755574539161,44.80165693,181.11,181.09,0.03]
[1755574539362,3.63271347,181.1,181.09,0.03]
[1755574539978,3.63271347,181.1,181.09,0.69]
[1755574540391,44.80165693,181.11,181.09,0.69]
[1755574540578,44.80165693,181.11,181.09,0.03]
[1755574541290,5.04165693,181.1,181.09,0.03]
[1755574541497,13.40117438,181.1,181.09,0.03]
[1755574541999,13.54319643,181.1,181.09,0.03]
[1755574543068,12.71103486,181.1,181.09,0.03]
[1755574543792,7.66937793,181.1,181.09,0.69]
[1755574543963,7.67044445,181.1,181.09,0.03]
[1755574544166,3.632731,181.1,181.09,0.03]
[1755574545179,3.632731,181.1,181.09,0.69]
[1755574545563,44.78165693,181.11,181.09,0.69]
[1755574545992,3.63225322,181.1,181.09,0.69]
[1755574546363,3.63225322,181.1,181.09,6.21211607]
[1755574546566,39.74,181.11,181.09,6.21211607]
[1755574546767,12.70938361,181.1,181.09,0.03]
[1755574548086,3.63202489,181.1,181.09,6.21211607]
[1755574548297,7.66799192,181.1,181.09,6.21211607]
[1755574548497,3.63202489,181.1,181.09,6.21211607]
[1755574548794,132.76,181.14,181.09,6.21211607]
[1755574548997,47.40798294,181.13,181.1,5.70165693]
[1755574549191,47.40798294,181.13,181.09,5.55211607]
[1755574549192,3.63206947,181.12,181.11,5.70165693]
[1755574549401,0.06,181.14,181.11,5.70165693]
[1755574549694,7.72872666,181.14,181.12,5.70165693]
[1755574549877,3.69246389,181.14,181.13,0.66]
[1755574550077,7.72873123,181.14,181.13,0.66]
[1755574550811,7.72873123,181.14,181.1,10.56346808]
[1755574551007,7.72880218,181.14,181.13,0.66]
[1755574551225,7.72880384,181.14,181.13,0.66]
[1755574551507,0.06,181.14,181.13,0.66]
[1755574552399,0.06,181.14,181.13,11.22255352]
[1755574552585,0.06,181.14,181.13,6.18089659]
[1755574552788,0.06,181.14,181.13,11.22255352]
[1755574552987,0.06,181.14,181.13,6.18089659]
[1755574553389,0.06,181.14,181.13,11.22255352]
[1755574555018,0.06,181.14,181.13,6.18089659]
[1755574555189,0.06,181.14,181.13,11.22255352]
[1755574555509,0.06,181.14,181.13,6.18089659]
[1755574555681,0.06,181.14,181.13,11.22255352]
[1755574560184,0.06,181.14,181.1,6.18181115]
[1755574560382,45.51165693,181.14,181.1,5.52181115]
[1755574561114,13.39313455,181.13,181.09,5.55203544]
[1755574561305,5.04165693,181.12,181.09,0.03]
[1755574561608,39.72,181.11,181.09,0.03]
[1755574561817,39.72,181.11,181.09,6.21209208]
[1755574562798,39.72,181.11,181.09,5.55209208]
[1755574563127,39.72,181.11,181.09,0.03]
[1755574563422,39.72,181.11,181.1,0.66]
[1755574563709,39.72,181.12,181.1,0.66]
[1755574564106,39.72,181.12,181.11,5.70165693]
[1755574564420,0.06,181.14,181.11,5.70165693]
[1755574564421,0.06,181.14,181.11,0.66]
[1755574564594,3.68901505,181.14,181.1,5.04165693]
[1755574564799,4.37901505,181.14,181.1,10.56324691]
[1755574565105,5.73165693,181.13,181.09,0.03]
[1755574565419,0.69,181.13,181.09,0.69]
[1755574565593,4.72204037,181.13,181.09,0.69]
[1755574565992,39.72,181.12,181.09,0.69]
[1755574566686,0.06,181.14,181.1,5.70165693]
[1755574566887,39.72,181.13,181.11,0.66]
[1755574567086,39.72,181.13,181.1,5.04165693]
[1755574567297,39.72,181.13,181.1,5.70165693]
[1755574567837,39.72,181.13,181.09,5.55207982]
[1755574567992,39.72,181.13,181.09,10.59373675]
[1755574568225,39.72,181.13,181.09,11.25373675]
[1755574568226,3.62860365,181.12,181.09,11.25373675]
[1755574568420,39.72,181.13,181.09,11.25373675]
[1755574569031,39.72,181.13,181.1,10.5632357]
[1755574569201,39.72,181.13,181.1,5.52157877]
[1755574569402,3.6291364,181.12,181.09,10.59367253]
[1755574569714,3.6291364,181.12,181.09,11.25367253]
[1755574569895,39.72,181.13,181.09,11.25367253]
[1755574569896,39.72,181.13,181.1,5.70165693]
[1755574570106,39.72,181.13,181.1,0.66]
[1755574570311,39.72,181.13,181.1,5.70165693]
[1755574571012,39.72,181.13,181.1,11.22333061]
[1755574572816,39.72,181.13,181.1,6.18167368]
[1755574573025,39.72,181.13,181.1,11.22333061]
[1755574573418,39.72,181.13,181.11,5.04165693]
[1755574573611,39.72,181.13,181.1,11.22333061]
[1755574574003,39.72,181.13,181.1,6.18167368]
[1755574574407,39.72,181.13,181.1,5.52167368]
[1755574574716,39.72,181.13,181.09,5.07165693]
[1755574574717,5.04165693,181.11,181.09,0.03]
[1755574574940,177.44165693,181.1,181.09,0.03]
[1755574575249,181.79000242,181.1,181.09,0.03]
[1755574575825,176.74834549,181.1,181.09,0.03]
[1755574576154,181.79000242,181.1,181.09,0.03]
[1755574576846,180.78056519,181.1,181.09,0.03]
[1755574577042,132.7,181.1,181.09,5.73165693]
[1755574577428,181.79132914,181.1,181.09,0.03]
[1755574577861,172.4,181.1,181.09,0.03]
[1755574578366,176.03019083,181.1,181.09,0.03]
[1755574579081,185.82535811,181.1,181.09,0.03]
[1755574579386,53.12535811,181.1,181.09,0.03]
[1755574579533,7.66370118,181.1,181.09,0.03]
[1755574579725,43.73351035,181.1,181.09,0.03]
[1755574579928,47.36370118,181.1,181.09,0.03]
[1755574580242,48.08370118,181.1,181.09,0.03]
[1755574580444,53.12554358,181.1,181.09,0.03]
[1755574580771,48.08388665,181.1,181.09,0.03]
[1755574581248,53.12554358,181.1,181.09,0.03]
[1755574582148,48.08388665,181.1,181.09,0.03]
[1755574582351,47.36388665,181.1,181.09,0.03]
[1755574582832,43.33019083,181.1,181.09,0.03]
[1755574583039,43.33019083,181.1,181.09,0.69]
[1755574583759,3.63019083,181.1,181.09,0.69]
[1755574584239,26.78,181.14,181.09,11.253773]
[1755574584240,0.06,181.14,181.09,11.253773]
[1755574584440,43.32943735,181.13,181.1,5.70165693]
[1755574584661,7.66218181,181.12,181.11,0.66]
[1755574585039,3.62943735,181.12,181.11,0.66]
[1755574585345,3.62943735,181.12,181.1,5.04165693]
[1755574585671,3.62943735,181.12,181.09,5.07165693]
[1755574586281,3.62943735,181.12,181.09,11.25368156]
[1755574586575,3.62943735,181.12,181.1,5.70165693]
[1755574586778,3.62943735,181.12,181.09,10.59368156]
[1755574586972,3.62943735,181.12,181.09,11.25368156]
[1755574587277,3.62943735,181.12,181.1,0.66]
[1755574587741,3.62943735,181.12,181.1,6.18180929]
[1755574587945,3.62943735,181.12,181.1,11.22346622]
[1755574588156,3.62943735,181.12,181.11,0.66]
[1755574588362,39.7,181.13,181.11,0.66]
[1755574589266,39.7,181.13,181.1,10.56346622]
[1755574589567,39.7,181.13,181.1,11.22346622]
[1755574590256,3.62886213,181.12,181.1,5.52180929]
[1755574590435,7.66113325,181.12,181.1,5.52180929]
[1755574590636,3.62886213,181.12,181.1,5.52180929]
[1755574591067,3.62886213,181.12,181.1,11.22346622]
[1755574592274,3.62886213,181.12,181.09,5.55207743]
[1755574592455,3.62886213,181.12,181.09,11.25373436]
[1755574593349,3.62886213,181.11,181.09,11.25373436]
[1755574593544,3.62886213,181.12,181.09,11.25373436]
[1755574593764,3.62886213,181.11,181.1,0.66]
[1755574593971,3.62886213,181.12,181.1,0.66]
[1755574594401,3.62886213,181.11,181.1,0.66]
[1755574594568,3.62886213,181.12,181.09,5.55207743]
[1755574594870,3.62886213,181.11,181.09,11.25373436]
[1755574595069,3.62886213,181.12,181.09,11.25373436]
[1755574595248,3.62886213,181.11,181.1,5.70165693]
[1755574595547,3.62886213,181.12,181.1,5.70165693]
[1755574595746,3.62886213,181.11,181.1,11.22346808]
[1755574595971,3.62886213,181.12,181.11,0.66]
[1755574596270,3.62886213,181.12,181.11,5.04165693]
[1755574596876,3.62886213,181.12,181.11,5.70165693]
[1755574597244,39.7,181.13,181.12,5.52120141]
[1755574597465,47.36305527,181.13,181.12,6.18120141]
[1755574598340,47.36305527,181.13,181.11,5.52144019]
[1755574598659,3.62980945,181.12,181.11,6.19144019]
[1755574598959,39.7,181.13,181.11,11.23309712]
[1755574599467,39.7,181.13,181.12,5.71165693]
[1755574599662,0.06,181.14,181.12,5.71165693]
[1755574599862,3.69184593,181.14,181.13,5.71165693]
[1755574600253,0.06,181.14,181.13,0.67]
[1755574600648,0.06,181.14,181.12,5.04165693]
[1755574600846,0.06,181.14,181.12,5.71165693]
[1755574601072,3.69184593,181.14,181.12,5.71165693]
[1755574601673,3.69184593,181.14,181.12,11.2325803]
[1755574602170,3.63184593,181.13,181.12,11.2325803]
[1755574602677,3.69184593,181.14,181.12,11.2325803]
[1755574602874,3.69184593,181.14,181.12,5.52092337]
[1755574603050,3.63184593,181.13,181.12,5.52092337]
[1755574603455,3.63184593,181.13,181.09,0.03]
[1755574603456,9.35350286,181.13,181.09,0.03]
[1755574603677,9.35350286,181.13,181.07,13.834075]
[1755574603678,31.04165693,181.1,181.07,0.03]
[1755574603866,26.0,181.06,181.04,0.03]
[1755574604067,79.5831038,181.06,181.04,0.03]
[1755574604269,80.26349872,181.06,181.04,0.03]
[1755574604463,84.93931446,181.06,181.04,0.03]
[1755574604659,0.14216157,181.05,181.04,0.03]
[1755574604857,18.04886965,181.05,181.04,0.03]
[1755574605069,13.52063502,181.05,181.04,0.03]
[1755574605293,28.62686971,181.05,181.04,0.03]
[1755574605452,33.15137241,181.05,181.04,0.03]
[1755574606480,28.10971548,181.05,181.04,0.03]
[1755574606780,33.15137241,181.05,181.04,0.03]
[1755574608166,15.10621557,181.04,180.97,0.03]
[1755574608491,5.04165693,180.99,180.97,0.03]
[1755574608645,48.47683564,180.99,180.97,0.03]
[1755574608851,7.65683564,180.99,180.98,0.7]
[1755574609252,7.64422993,180.99,180.98,0.7]
[1755574609776,7.64422993,180.99,180.98,6.22547242]
[1755574609777,3.63184593,180.99,180.98,6.22547242]
[1755574609954,3.63184593,180.99,180.98,11.26712935]
[1755574610589,4.51425709,181.05,180.99,15.10621557]
[1755574610781,7.62347356,181.04,181.03,5.04165693]
[1755574611085,3.61115023,181.04,181.03,5.71165693]
[1755574611375,3.61115023,181.04,181.03,0.67]
[1755574611585,12.66404458,181.04,181.0,0.67]
[1755574611751,12.1347655,181.03,180.99,5.04165693]
[1755574611951,12.1347655,181.03,180.99,5.71165693]
[1755574611952,7.62238765,181.02,180.99,5.71165693]
[1755574612150,3.61115023,181.01,181.0,5.71165693]
[1755574613396,3.61115023,181.01,181.0,11.2365188]
[1755574614389,3.61115023,181.01,181.0,6.19486187]
[1755574614690,3.61115023,181.01,181.0,11.2365188]
[1755574615976,30.51237785,181.08,181.0,5.52486187]
[1755574616164,30.51237785,181.08,180.98,0.03]
[1755574616165,5.04165693,181.03,180.98,5.07165693]
[1755574616365,4.00954543,181.02,180.98,5.74165693]
[1755574616698,4.00954543,181.01,180.99,5.04165693]
[1755574616876,4.00954543,181.0,180.99,5.04165693]
[1755574617077,4.00954543,181.01,180.99,5.04165693]
[1755574617286,4.00954543,181.0,180.98,0.7]
[1755574617592,5.19237785,181.03,180.98,0.7]
[1755574617791,4.00912213,181.02,180.98,0.7]
[1755574617998,4.00912213,181.01,180.99,5.04165693]
[1755574618197,5.19237785,181.03,180.98,0.7]
[1755574618410,4.00861892,181.02,180.99,5.04165693]
[1755574618708,4.00861892,181.01,180.99,5.04165693]
[1755574618913,5.19237785,181.03,180.99,5.04165693]
[1755574619207,4.0090203,181.02,180.98,0.7]
[1755574619415,4.0090203,181.01,180.99,5.04165693]
[1755574619576,5.19237785,181.03,180.99,5.04165693]
[1755574619778,4.00875719,181.02,180.99,5.04165693]
[1755574620001,4.00875719,181.01,180.99,5.04165693]
[1755574620197,4.51237785,181.04,181.0,5.71165693]
[1755574620471,4.51237785,181.06,181.03,5.04165693]
[1755574620678,4.01097003,181.05,181.04,5.71165693]
[1755574620873,4.01097003,181.05,181.04,5.04165693]
[1755574621194,30.51237785,181.07,181.03,5.04165693]
[1755574621195,4.01097003,181.06,181.03,5.04165693]
[1755574621373,4.01097003,181.05,181.04,0.67]
[1755574621575,4.01097003,181.05,181.02,0.67]
[1755574621783,4.0107632,181.04,181.03,5.04165693]
[1755574622088,4.0107632,181.05,181.03,5.04165693]
[1755574622275,4.01095821,181.04,181.03,5.04165693]
[1755574622479,4.01095821,181.04,181.03,5.07165693]
[1755574622675,4.07120373,181.05,181.03,5.74165693]
[1755574623014,4.01120373,181.04,181.03,0.7]
[1755574623172,0.06,181.05,181.03,5.74165693]
[1755574623374,0.06,181.05,181.04,5.04165693]
[1755574623603,0.06,181.05,181.04,5.71165693]
[1755574624094,0.06,181.05,181.04,20.8178725]
[1755574624271,0.06,181.05,181.04,26.34151368]
[1755574624469,0.06,181.05,181.04,21.29985675]
[1755574624669,0.06,181.05,181.04,26.34151368]
[1755574627408,0.06,181.09,181.07,26.0]
[1755574627701,0.06,181.09,181.08,61.9778725]
[1755574627904,0.06,181.11,181.1,15.10621557]
[1755574628086,0.06,181.11,181.1,46.1478725]
[1755574628276,0.06,181.11,181.1,46.8378725]
[1755574629189,0.06,181.11,181.1,52.35968365]
[1755574630084,0.06,181.11,181.1,93.51968365]
[1755574630284,0.06,181.11,181.1,96.41094455]
[1755574633477,0.06,181.11,181.1,88.39802672]
[1755574633678,0.06,181.11,181.1,96.33094455]
[1755574634386,0.06,181.11,181.08,5.52242102]
[1755574634589,15.86583566,181.09,181.02,16.603481]
[1755574634779,15.86583566,181.09,180.96,0.03]
[1755574634780,8.28141333,181.08,180.96,0.03]
[1755574634980,8.28141333,181.08,181.0,7.992918]
[1755574634981,38.44529568,181.04,181.0,7.992918]
[1755574635209,41.54433116,181.04,181.0,7.992918]
[1755574635385,34.28141333,181.04,180.96,0.03]
[1755574635708,7.93291783,181.0,180.96,0.03]
[1755574635896,11.53917038,180.99,180.96,0.03]
[1755574636099,8.27934317,180.99,180.96,0.03]
[1755574636304,3.60625255,180.99,180.96,0.03]
[1755574637005,4.27625255,180.99,180.96,0.03]
[1755574637508,8.78054605,180.99,180.96,0.03]
[1755574637813,20.85765788,180.99,180.96,0.03]
[1755574638002,12.92474005,180.99,180.96,0.03]
[1755574638198,10.9608384,180.99,180.96,0.03]
[1755574638499,26.67,180.99,180.96,0.03]
[1755574638692,33.93291783,180.99,180.96,0.03]
[1755574638891,34.60291783,180.99,180.96,0.03]
[1755574639393,26.67,180.99,180.96,0.03]
[1755574639592,45.71767557,181.02,180.96,7.96291783]
[1755574639593,0.67,181.01,180.96,7.96291783]
[1755574639808,51.88291783,181.04,180.99,7.93291783]
[1755574640109,8.60291783,181.03,180.98,0.72]
[1755574640312,7.93291783,181.01,180.98,0.03]
[1755574640620,7.93291783,180.99,180.98,0.03]
[1755574640799,0.67,181.0,180.98,0.03]
[1755574641108,7.93291783,180.99,180.98,0.03]
[1755574641309,51.3150794,180.99,180.98,0.03]
[1755574641515,44.05216157,180.99,180.98,0.03]
[1755574641686,51.9850794,180.99,180.98,0.03]
[1755574642212,51.84291783,180.99,180.98,0.03]